bitfinex-derivatives/quotes_SOLF0:USTF0_20241218
["timestamp","ask_amount","ask_price","bid_price","bid_amount"]
[1734490276280,7.85361585,218.9,218.83,5.56951585]
[1734490276482,16.16734044,218.9,218.83,7.85431585]
[1734490276778,5.56951585,218.9,218.83,5.56951585]
[1734490277486,7.85361585,218.9,218.84,2.2847]
[1734490277865,18.44899641,218.9,218.84,2.2847]
[1734490278069,7.85361585,218.9,218.84,2.2847]
[1734490278368,18.44866066,218.9,218.84,2.2847]
[1734490278588,5.56951585,218.88,218.66,18.76999044]
[1734490278781,5.56951585,218.86,218.78,5.56951585]
[1734490278981,7.98951585,218.86,218.73,3.9244]
[1734490279178,2.42,218.86,218.83,0.3615]
[1734490280774,2.2845,218.87,218.83,0.3615]
[1734490282089,1.5105,218.9,218.83,0.3615]
[1734490282379,7.98951585,218.9,218.83,0.3615]
[1734490282670,10.27361585,218.9,218.83,2.6462]
[1734490282877,10.27361585,218.9,218.83,0.3615]
[1734490284485,10.27361585,218.9,218.84,2.2846]
[1734490286988,3.1495,218.96,218.86,5.56951585]
[1734490287284,7.98951585,218.95,218.86,5.56951585]
[1734490287474,5.56951585,218.93,218.84,5.56951585]
[1734490287684,5.56951585,218.91,218.83,0.3615]
[1734490288451,242.48728895,219.15,218.83,0.3615]
[1734490288452,5.56951585,218.99,218.89,5.56951585]
[1734490288652,22.85559968,218.99,218.91,5.56951585]
[1734490288958,5.56951585,218.95,218.87,2.42]
[1734490289163,5.56951585,218.95,218.87,7.98951585]
[1734490289661,13.00611489,218.96,218.89,5.56951585]
[1734490290362,15.28961489,218.96,218.91,2.2839]
[1734490291768,2.2836,218.95,218.91,2.2839]
[1734490292660,2.2838,218.93,218.88,2.2843]
[1734490293060,2.2838,218.93,218.89,2.2842]
[1734490293966,2.284,218.92,218.87,4.7044]
[1734490294170,5.56951585,218.91,218.84,5.56951585]
[1734490294563,2.2842,218.9,218.85,2.2846]
[1734490295565,2.2844,218.89,218.83,2.6463]
[1734490295766,5.56951585,218.89,218.83,0.3615]
[1734490296068,2.42,218.91,218.83,0.3615]
[1734490296069,5.56951585,218.87,218.83,0.3615]
[1734490297672,5.56951585,218.85,218.63,6.25666348]
[1734490297867,10.59197406,218.88,218.72,5.56951585]
[1734490298064,17.29546393,218.87,218.76,5.56951585]
[1734490298365,5.56951585,218.84,218.76,5.56951585]
[1734490298666,5.56951585,218.84,218.77,2.2855]
[1734490298969,2.4,218.83,218.74,5.56951585]
[1734490299167,7.85461585,218.82,218.74,7.85521585]
[1734490299372,5.56951585,218.8,218.7,5.44411486]
[1734490299572,5.56951585,218.76,218.7,5.44411486]
[1734490299775,5.56951585,218.76,218.7,7.73041486]
[1734490300069,5.56951585,218.76,218.7,2.2863]
[1734490300868,7.85501585,218.77,218.7,2.2863]
[1734490301171,5.56951585,218.76,218.7,2.2863]
[1734490301473,5.56951585,218.74,218.62,1.4722]
[1734490301772,2.42,218.73,218.67,2.2866]
[1734490302267,7.98951585,218.73,218.67,2.2866]
[1734490302970,10.27551585,218.73,218.66,7.85611585]
[1734490303166,7.98951585,218.73,218.62,3.8922]
[1734490303368,7.98951585,218.73,218.63,5.56951585]
[1734490303567,2.2861,218.72,218.64,2.2868]
[1734490303973,2.2861,218.72,218.65,5.56951585]
[1734490303974,2.42,218.71,218.65,5.56951585]
[1734490304570,2.42,218.71,218.67,5.56951585]
[1734490304963,2.42,218.71,218.62,9.3267837]
[1734490305162,2.42,218.71,218.65,2.2867]
[1734490307879,2.42,218.71,218.63,5.56951585]
[1734490308175,4.7062,218.71,218.65,5.56951585]
[1734490309576,4.7062,218.71,218.65,7.85631585]
[1734490309776,2.287,218.63,218.43,6.25666348]
[1734490309977,2.42,218.62,218.57,2.2876]
[1734490310179,2.42,218.62,218.56,5.56951585]
[1734490310474,2.42,218.62,218.4,4.5787]
[1734490310475,5.56951585,218.59,218.51,5.56951585]
[1734490310680,5.56951585,218.59,218.53,2.2879]
[1734490311075,5.56951585,218.59,218.51,5.56951585]
[1734490311076,3.0584,218.65,218.57,5.56951585]
[1734490311278,2.42,218.64,218.58,2.2874]
[1734490311780,1.468,218.65,218.61,5.56951585]
[1734490312079,2.42,218.65,218.58,8.76699866]
[1734490312379,1.5068,218.69,218.58,8.76699866]
[1734490312576,2.42,218.68,218.58,8.76699866]
[1734490313478,2.42,218.68,218.62,2.2871]
[1734490313679,2.42,218.68,218.58,8.76699866]
[1734490314278,2.2867,218.66,218.6,2.2872]
[1734490314477,2.42,218.68,218.6,2.2872]
[1734490315577,2.2868,218.65,218.6,2.2872]
[1734490316082,2.2866,218.67,218.61,2.2872]
[1734490316479,3.9182,218.68,218.61,2.2872]
[1734490316684,2.2867,218.66,218.61,2.2872]
[1734490320184,2.42,218.7,218.61,8.76699866]
[1734490320385,1.508,218.75,218.61,8.76699866]
[1734490320583,2.42,218.74,218.61,8.76699866]
[1734490321389,2.2861,218.71,218.66,2.2866]
[1734490322787,12.57242934,218.75,218.61,8.76699866]
[1734490322990,1.6014,218.76,218.64,8.76699866]
[1734490323286,108.18342973,218.79,218.67,8.76699866]
[1734490323287,101.83643107,218.79,218.67,8.76699866]
[1734490323492,2.2855,218.77,218.72,2.2859]
[1734490324785,2.2855,218.77,218.71,2.286]
[1734490326089,2.2856,218.76,218.69,2.2861]
[1734490327201,2.2854,218.77,218.71,2.286]
[1734490327904,2.2853,218.79,218.73,2.2858]
[1734490328097,2.4,218.78,218.73,2.2858]
[1734490329395,4.6853,218.78,218.73,2.2858]
[1734490330696,2.4,218.81,218.78,2.2852]
[1734490331501,4.6848,218.83,218.78,2.2852]
[1734490331697,2.4,218.84,218.8,2.285]
[1734490331894,3.0427,218.86,218.76,8.76699866]
[1734490332093,1.5775,218.87,218.76,11.16699866]
[1734490332396,2.4,218.88,218.79,8.76699866]
[1734490332601,2.2841,218.9,218.79,8.76699866]
[1734490332999,11.07399009,218.92,218.82,8.76699866]
[1734490333300,2.4,218.96,218.85,8.76699866]
[1734490333500,12.77300105,218.98,218.85,8.76699866]
[1734490333701,1.69829,218.98,218.88,8.76699866]
[1734490333897,1.69829,218.98,218.88,11.16699866]
[1734490334100,0.20789,218.98,218.88,11.16699866]
[1734490335299,0.20789,218.98,218.94,2.2836]
[1734490335703,0.20789,218.98,218.88,11.16699866]
[1734490336199,0.20789,218.98,218.91,8.76699866]
[1734490336899,0.20789,218.98,218.94,2.2836]
[1734490341806,0.20789,218.98,218.95,2.2835]
[1734490344513,0.20789,218.98,218.92,2.2838]
[1734490344814,0.20789,218.98,218.88,7.75794571]
[1734490344815,0.20789,218.98,218.88,16.52494437]
[1734490345015,0.20789,218.98,218.88,14.12494437]
[1734490346514,2.2833,218.97,218.91,2.2839]
[1734490348213,0.20789,218.98,218.91,8.76699866]
[1734490349511,0.20789,218.98,218.95,2.2834]
[1734490353923,0.20789,218.98,218.97,11.05029866]
[1734490354118,1.5085,219.05,218.97,11.05029866]
[1734490354119,1.5085,219.05,218.97,8.76699866]
[1734490354624,5.3379,219.06,218.97,8.76699866]
[1734490355027,99.28915667,219.07,219.0,8.76699866]
[1734490355226,3.8853,219.1,219.03,8.76699866]
[1734490355422,2.4,219.1,219.04,2.2826]
[1734490356032,4.682,219.1,219.04,2.2826]
[1734490358229,4.682,219.1,219.05,2.2824]
[1734490359334,4.682,219.1,219.04,2.2826]
[1734490361429,4.682,219.1,219.06,2.2824]
[1734490361430,2.4,219.1,219.06,2.2824]
[1734490361925,2.4,219.1,219.08,2.2821]
[1734490362326,3.7434,219.13,219.03,8.76699866]
[1734490362925,3.7434,219.13,219.06,2.2824]
[1734490363532,3.7434,219.13,219.07,2.2822]
[1734490364027,2.2818,219.12,219.07,2.2822]
[1734490364428,1.4617,219.13,219.07,2.2822]
[1734490364827,2.2818,219.12,219.07,2.2822]
[1734490366135,2.2818,219.12,219.08,2.2822]
[1734490367131,4.6816,219.14,219.09,2.2821]
[1734490368435,2.2817,219.13,219.09,2.2821]
[1734490371029,2.2817,219.13,219.06,8.76699866]
[1734490371234,2.2817,219.13,219.1,2.282]
[1734490372032,2.2817,219.13,219.11,5.58697928]
[1734490372232,2.2816,219.14,219.11,5.58697928]
[1734490374633,2.2816,219.14,219.11,7.86877928]
[1734490375339,2.2816,219.14,219.12,5.58697928]
[1734490375833,13.29696292,219.14,219.12,5.58697928]
[1734490376037,11.01536292,219.13,219.12,5.58697928]
[1734490376638,2.2816,219.14,219.12,5.58697928]
[1734490377836,13.41536292,219.16,219.1,2.2819]
[1734490378035,2.2817,219.13,219.1,2.2819]
[1734490378240,2.2817,219.13,219.11,5.58697928]
[1734490378842,2.2816,219.14,219.11,5.58697928]
[1734490379435,2.2817,219.13,219.11,5.58697928]
[1734490382944,13.29706292,219.13,219.11,5.58697928]
[1734490383147,11.01536292,219.12,219.11,5.58697928]
[1734490383341,2.2817,219.13,219.11,5.58697928]
[1734490384140,13.29706292,219.13,219.11,5.58697928]
[1734490384339,11.01536292,219.12,219.11,5.58697928]
[1734490384545,2.2817,219.13,219.11,5.58697928]
[1734490385450,6.73378327,219.14,219.08,2.2821]
[1734490385650,6.73378327,219.14,219.1,5.58697928]
[1734490385848,20.14914619,219.16,219.1,5.58697928]
[1734490386147,17.74914619,219.15,219.1,5.58697928]
[1734490386349,17.74914619,219.14,219.1,5.58697928]
[1734490386653,13.29716292,219.13,219.1,5.58697928]
[1734490386952,11.01536292,219.12,219.1,5.58697928]
[1734490387148,11.01536292,219.11,219.1,5.58697928]
[1734490387453,2.2818,219.13,219.1,5.58697928]
[1734490388650,9.0176923,219.14,219.12,5.58697928]
[1734490388844,11.01536292,219.15,219.12,5.58697928]
[1734490389047,160.44850487,219.25,219.14,5.58697928]
[1734490389349,2.2811,219.19,219.17,5.58697928]
[1734490389843,2.2811,219.18,219.17,5.58697928]
[1734490390650,9.017792,219.18,219.17,5.58697928]
[1734490390848,9.017792,219.18,219.16,5.58697928]
[1734490391048,9.017792,219.18,219.14,2.2815]
[1734490391245,9.017792,219.18,219.16,5.58697928]
[1734490392448,6.736692,219.18,219.16,7.86827928]
[1734490392651,17.5716975,219.18,219.16,7.86827928]
[1734490392849,17.5716975,219.17,219.16,7.86827928]
[1734490393154,2.4,219.23,219.16,5.58697928]
[1734490393358,2.4,219.23,219.17,5.58697928]
[1734490393359,15.5834746,219.23,219.17,5.58697928]
[1734490393548,10.8350055,219.22,219.09,3.0513]
[1734490393746,13.18357003,219.21,219.16,5.58697928]
[1734490393949,2.2812,219.18,219.16,5.58697928]
[1734490394153,6.73937505,219.19,219.16,5.58697928]
[1734490394554,2.2812,219.18,219.16,5.58697928]
[1734490394856,10.8350055,219.19,219.15,5.58697928]
[1734490395053,2.2812,219.17,219.15,5.58697928]
[1734490395355,17.57438055,219.18,219.15,5.58697928]
[1734490395557,10.8350055,219.18,219.17,5.58697928]
[1734490395755,6.74390783,219.18,219.17,5.58697928]
[1734490395951,2.4,219.19,219.15,5.58697928]
[1734490396154,2.4,219.19,219.17,5.58697928]
[1734490396654,19.97891333,219.19,219.17,5.58697928]
[1734490396957,6.74390783,219.18,219.17,5.58697928]
[1734490398054,9.02490783,219.2,219.17,5.58697928]
[1734490399958,9.02490783,219.2,219.15,7.86837928]
[1734490401455,2.2811,219.19,219.15,7.86837928]
[1734490403058,6.74390783,219.2,219.15,5.58697928]
[1734490403261,2.2812,219.18,219.15,5.58697928]
[1734490404655,2.281,219.19,219.15,7.86837928]
[1734490405062,2.281,219.19,219.15,5.58697928]
[1734490405665,17.55473235,219.2,219.17,5.58697928]
[1734490405959,2.2804,219.25,219.19,5.58697928]
[1734490406160,4.6804,219.25,219.19,5.58697928]
[1734490406559,2.2804,219.25,219.21,5.58697928]
[1734490407054,17.31884035,219.25,219.23,5.58697928]
[1734490407260,2.4,219.29,219.23,5.58697928]
[1734490407463,2.4,219.29,219.26,5.58697928]
[1734490407764,9.11920851,219.29,219.26,5.58697928]
[1734490408257,11.39920851,219.29,219.26,5.58697928]
[1734490408567,10.59652434,219.28,219.26,5.58697928]
[1734490409058,10.59652434,219.27,219.26,5.58697928]
[1734490409259,10.59652434,219.27,219.24,7.86737928]
[1734490409459,2.2801,219.28,219.24,7.86737928]
[1734490409660,2.4,219.29,219.24,7.86737928]
[1734490409857,9.10924619,219.29,219.24,7.86737928]
[1734490410062,6.70924619,219.29,219.24,7.86737928]
[1734490411167,10.58107072,219.3,219.24,7.86737928]
[1734490411359,2.2803,219.26,219.21,2.2808]
[1734490411562,5.58697928,219.26,219.18,5.58697928]
[1734490411763,7.98697928,219.26,219.18,5.58697928]
[1734490412164,7.98697928,219.26,219.17,5.58386566]
[1734490412361,5.58697928,219.22,219.15,5.58697928]
[1734490412864,2.2811,219.19,219.15,5.58697928]
[1734490413568,17.29495422,219.21,219.18,5.58697928]
[1734490413768,1.5678,219.25,219.18,5.58697928]
[1734490413965,12.16435817,219.25,219.18,5.58697928]
[1734490414169,2.2807,219.22,219.18,7.86807928]
[1734490415060,17.3149899,219.23,219.18,5.58697928]
[1734490415266,2.2809,219.21,219.18,5.58697928]
[1734490415466,12.16435817,219.25,219.18,5.58697928]
[1734490415663,2.2808,219.22,219.18,5.58697928]
[1734490416471,2.2808,219.22,219.18,7.86807928]
[1734490418761,2.2808,219.22,219.18,5.58697928]
[1734490418965,2.281,219.2,219.15,2.2814]
[1734490419169,10.59655817,219.23,219.15,2.2814]
[1734490419665,10.59655817,219.22,219.16,5.58697928]
[1734490419866,5.58697928,219.24,219.16,5.58697928]
[1734490419867,10.59655817,219.21,219.16,5.58697928]
[1734490420170,2.281,219.2,219.16,5.58697928]
[1734490422071,5.58697928,219.2,219.11,5.58697928]
[1734490422476,2.2816,219.14,219.11,5.58697928]
[1734490422774,3.0132,219.22,219.08,5.59985392]
[1734490422775,2.38,219.15,219.08,5.59985392]
[1734490422975,2.38,219.15,219.09,5.58697928]
[1734490423675,19.70254094,219.15,219.09,5.58697928]
[1734490423875,6.72195602,219.14,219.13,5.58697928]
[1734490424077,2.38,219.19,219.13,5.58697928]
[1734490424776,2.2815,219.15,219.13,5.58697928]
[1734490427079,2.2816,219.14,219.11,5.58697928]
[1734490431978,6.7365251,219.16,219.08,5.59985392]
[1734490431979,2.2818,219.13,219.08,7.88195392]
[1734490432177,2.2818,219.13,219.08,13.4689332]
[1734490433079,5.58697928,219.16,219.08,13.4689332]
[1734490433287,2.2818,219.12,219.08,13.4689332]
[1734490434687,2.2817,219.13,219.1,5.58697928]
[1734490435380,6.74447969,219.16,219.1,5.58697928]
[1734490435580,18.60245299,219.21,219.08,5.59985392]
[1734490435790,5.58697928,219.19,219.08,5.59985392]
[1734490435979,2.2817,219.14,219.11,5.58697928]
[1734490440890,2.2815,219.15,219.11,7.86877928]
[1734490441296,2.2815,219.15,219.11,5.58697928]
[1734490441885,2.2816,219.14,219.11,5.58697928]
[1734490442785,5.58697928,219.13,218.92,6.25666348]
[1734490443097,2.38,219.12,219.05,5.58697928]
[1734490443289,2.2822,219.08,219.05,5.58697928]
[1734490447292,2.2821,219.09,219.07,5.58697928]
[1734490447498,2.38,219.14,219.07,5.58697928]
[1734490447696,2.38,219.14,219.09,5.58697928]
[1734490447895,2.2818,219.13,219.09,5.58697928]
[1734490448194,13.00547359,219.14,219.09,5.58697928]
[1734490448395,2.38,219.14,219.09,5.58697928]
[1734490448596,2.2819,219.12,219.09,5.58697928]
[1734490448989,7.96697928,219.14,219.06,5.58697928]
[1734490449192,2.2822,219.08,219.06,5.58697928]
[1734490451493,2.2826,219.05,219.01,2.2829]
[1734490451698,9.11830534,219.09,219.02,5.58697928]
[1734490451894,13.00477232,219.09,219.02,5.58697928]
[1734490452196,2.2825,219.05,219.02,5.58697928]
[1734490453391,13.00165097,219.09,219.02,5.58697928]
[1734490453392,10.62165097,219.08,219.02,5.58697928]
[1734490453599,2.2824,219.06,219.02,5.58697928]
[1734490454496,2.2821,219.1,219.05,2.2825]
[1734490454703,2.38,219.13,219.09,5.58697928]
[1734490455204,2.2819,219.12,219.09,5.58697928]
[1734490455501,6.73891033,219.15,219.09,5.58697928]
[1734490455502,10.6260767,219.13,219.09,5.58697928]
[1734490455701,2.2817,219.14,219.09,7.86897928]
[1734490455901,1.4746,219.16,219.09,7.86897928]
[1734490456102,2.38,219.15,219.09,7.86897928]
[1734490456503,13.01013688,219.15,219.09,7.86897928]
[1734490456696,12.91173688,219.14,219.09,7.86897928]
[1734490456901,2.2816,219.14,219.09,7.86897928]
[1734490457505,12.91809351,219.14,219.09,7.86897928]
[1734490457706,2.2816,219.14,219.09,7.86897928]
[1734490458307,12.92179493,219.14,219.09,7.86897928]
[1734490458502,10.64019493,219.13,219.09,7.86897928]
[1734490458807,2.2816,219.14,219.09,7.86897928]
[1734490459100,5.58697928,219.11,219.01,11.14385673]
[1734490459302,5.58697928,219.08,219.01,11.14385673]
[1734490459498,7.96697928,219.08,219.01,11.14385673]
[1734490459697,2.2824,219.06,219.01,11.14385673]
[1734490461609,2.2824,219.06,219.01,13.42675673]
[1734490463208,2.2824,219.06,218.85,6.25666348]
[1734490463209,5.58697928,219.02,218.84,10.82606348]
[1734490463406,5.58697928,218.98,218.91,11.08293652]
[1734490463909,2.2834,218.97,218.91,11.08293652]
[1734490464307,2.2836,218.95,218.91,11.08293652]
[1734490465715,2.2836,218.95,218.85,2.2213]
[1734490465716,5.58697928,218.93,218.65,25.02665392]
[1734490465910,5.58697928,218.8,218.74,5.55844867]
[1734490466215,2.2843,218.88,218.78,5.58697928]
[1734490466417,2.2843,218.88,218.74,5.55844867]
[1734490466418,5.58697928,218.88,218.8,5.58697928]
[1734490466911,2.2845,218.86,218.8,5.58697928]
[1734490467115,5.58697928,218.88,218.8,5.58697928]
[1734490467414,2.38,218.89,218.74,5.55844867]
[1734490467415,5.58697928,218.82,218.74,5.55844867]
[1734490467612,5.58070958,218.92,218.74,5.55844867]
[1734490467613,5.58697928,218.8,218.74,5.55844867]
[1734490467808,2.38,218.8,218.74,11.14542795]
[1734490468016,2.38,218.8,218.74,5.55844867]
[1734490469219,2.38,218.8,218.64,1.4443]
[1734490469412,2.38,218.8,218.7,5.57686839]
[1734490470215,2.2856,218.76,218.7,5.57686839]
[1734490474715,3.0544,218.85,218.72,8.75765065]
[1734490474912,2.38,218.84,218.72,8.75765065]
[1734490475108,2.38,218.84,218.73,1.4481]
[1734490476511,2.38,218.84,218.75,2.2856]
[1734490476512,2.2849,218.82,218.75,2.2856]
[1734490476717,88.2841553,218.86,218.75,8.75765065]
[1734490476911,2.38,218.85,218.75,8.75765065]
[1734490478518,2.2848,218.83,218.76,2.2855]
[1734490478717,4.6648,218.83,218.76,2.2855]
[1734490480217,2.2849,218.82,218.76,2.2855]
[1734490482815,1.493,218.9,218.75,8.75765065]
[1734490482816,8.75765065,218.94,218.78,8.75765065]
[1734490483011,8.75765065,218.94,218.81,8.75765065]
[1734490483416,2.2842,218.89,218.82,2.2848]
[1734490484022,2.2842,218.89,218.83,2.2848]
[1734490484318,2.2842,218.89,218.79,1.4524]
[1734490484319,2.2843,218.88,218.79,1.4524]
[1734490484620,8.75765065,218.88,218.76,2.2854]
[1734490485121,8.75765065,218.88,218.78,2.2852]
[1734490485321,1.5702,218.9,218.75,8.75765065]
[1734490485619,2.38,218.89,218.78,8.75765065]
[1734490485821,2.38,218.89,218.81,2.2849]
[1734490486313,2.38,218.89,218.81,8.75765065]
[1734490486516,2.38,218.89,218.84,2.2847]
[1734490486913,14.1513499,218.94,218.84,2.2847]
[1734490487117,2.38,218.93,218.84,2.2847]
[1734490488417,2.2842,218.89,218.84,2.2847]
[1734490494731,1.5702,218.97,218.84,8.75765065]
[1734490494732,10.32785065,218.97,218.84,8.75765065]
[1734490494932,2.2839,218.92,218.84,8.75765065]
[1734490495538,2.2837,218.94,218.89,2.2842]
[1734490495837,2.38,218.96,218.87,8.75765065]
[1734490496832,2.38,218.96,218.85,1.5936]
[1734490497439,2.2838,218.93,218.88,2.2843]
[1734490499641,2.38,218.97,218.87,8.75765065]
[1734490499846,2.38,218.98,218.9,8.75765065]
[1734490500141,2.2832,218.99,218.94,2.2836]
[1734490500741,3.1714,219.04,218.93,8.75765065]
[1734490500937,3.1714,219.04,218.97,2.2833]
[1734490501335,5.5514,219.04,218.97,2.2833]
[1734490501538,2.2829,219.02,218.98,2.2832]
[1734490502034,2.2831,219.01,218.96,2.2834]
[1734490502240,8.75765065,219.0,218.87,2.38]
[1734490502441,2.38,218.99,218.87,2.38]
[1734490502738,2.2835,218.96,218.91,2.2839]
[1734490503138,151.55455559,219.18,218.89,8.75765065]
[1734490503445,8.75765065,219.09,218.95,8.75765065]
[1734490503643,7.73879745,219.08,218.96,2.38]
[1734490503839,8.75765065,219.06,218.96,2.38]
[1734490504045,8.75765065,219.03,218.9,3.9739]
[1734490504342,2.38,219.02,218.9,3.9739]
[1734490504646,2.38,219.02,218.92,2.2839]
[1734490505344,2.2834,218.97,218.92,2.2839]
[1734490505843,2.38,219.02,218.9,3.9739]
[1734490506041,8.75765065,219.09,218.92,8.75765065]
[1734490506241,7.90732589,219.08,218.95,8.75765065]
[1734490506442,15.04983193,219.08,218.95,2.38]
[1734490506737,8.75765065,219.06,218.95,2.38]
[1734490506935,7.14250604,219.06,218.95,2.38]
[1734490508442,2.2829,219.02,218.97,2.2834]
[1734490508643,8.75765065,218.98,218.83,2.38]
[1734490508838,3.9433,218.97,218.83,8.75765065]
[1734490509038,2.2841,218.91,218.86,86.39121173]
[1734490509238,8.75765065,218.95,218.86,84.10661173]
[1734490509845,19.44160257,218.95,218.86,84.10661173]
[1734490510143,8.75765065,218.95,218.81,2.38]
[1734490510348,8.75765065,218.95,218.84,2.2848]
[1734490510549,26.59897641,218.95,218.84,86.40259068]
[1734490510749,8.75765065,218.95,218.84,86.40259068]
[1734490511050,8.75765065,218.95,218.84,2.2848]
[1734490511253,26.60925634,218.95,218.84,2.2848]
[1734490511442,17.85160569,218.94,218.81,2.38]
[1734490511748,17.85160569,218.94,218.85,2.2847]
[1734490511749,7.15721699,218.93,218.85,2.2847]
[1734490512148,2.2842,218.9,218.85,2.2847]
[1734490513945,2.2843,218.89,218.84,82.05539835]
[1734490514348,7.15721699,218.93,218.84,82.05539835]
[1734490515050,2.2842,218.91,218.84,84.34009835]
[1734490515241,7.15721699,218.93,218.84,84.34009835]
[1734490515948,2.2843,218.89,218.84,82.05539835]
[1734490516142,7.15721699,218.93,218.84,82.05539835]
[1734490516348,2.38,218.91,218.84,82.05539835]
[1734490516547,2.2847,218.85,218.84,82.05539835]
[1734490520953,2.2847,218.85,218.84,77.14541275]
[1734490521153,2.2854,218.79,218.71,8.75765065]
[1734490521359,11.13765065,218.86,218.71,8.75765065]
[1734490521360,17.92206736,218.85,218.72,5.45374731]
[1734490521553,7.18866537,218.84,218.72,5.45374731]
[1734490521752,2.285,218.83,218.72,5.45374731]
[1734490521952,7.18866537,218.84,218.77,2.2855]
[1734490523458,2.285,218.82,218.77,2.2855]
[1734490528063,7.18866537,218.84,218.76,8.75765065]
[1734490528252,4.6647,218.86,218.76,8.75765065]
[1734490528454,2.2847,218.86,218.76,11.13765065]
[1734490529360,10.73112538,218.88,218.79,8.75765065]
[1734490529658,2.38,218.91,218.82,8.75765065]
[1734490529862,4.6641,218.91,218.86,2.2846]
[1734490530665,2.2842,218.9,218.86,2.2846]
[1734490531164,2.38,218.91,218.82,8.75765065]
[1734490531360,2.38,218.91,218.81,2.38]
[1734490531361,2.2844,218.88,218.83,2.2848]
[1734490534061,2.2846,218.87,218.82,2.285]
[1734490539869,9.46565384,218.89,218.84,2.2848]
[1734490540165,10.73015589,218.9,218.83,82.17621075]
[1734490540370,2.38,218.91,218.83,82.17621075]
[1734490540567,20.27382022,218.91,218.83,82.17621075]
[1734490540767,2.38,218.91,218.83,82.17621075]
[1734490540973,20.27605238,218.91,218.83,82.17621075]
[1734490541169,2.2843,218.89,218.85,2.2846]
[1734490541365,2.2843,218.89,218.83,82.17621075]
[1734490541570,10.7228459,218.9,218.83,82.17621075]
[1734490541764,2.38,218.91,218.83,82.17621075]
[1734490541965,2.2842,218.9,218.85,2.2846]
[1734490546773,13.00152377,218.9,218.85,2.2846]
[1734490546974,2.2842,218.9,218.85,2.2846]
[1734490547176,13.00242332,218.9,218.85,2.2846]
[1734490547469,4.6642,218.9,218.85,2.2846]
[1734490547671,11.83908473,218.9,218.85,2.2846]
[1734490547871,4.6642,218.9,218.85,2.2846]
[1734490548072,15.38454664,218.9,218.85,2.2846]
[1734490548267,4.6642,218.9,218.85,2.2846]
[1734490548471,15.39143663,218.9,218.85,2.2846]
[1734490549269,2.2843,218.89,218.85,2.2846]
[1734490549874,13.01153663,218.89,218.85,2.2846]
[1734490550073,2.2843,218.89,218.85,2.2846]
[1734490550975,20.17815705,218.89,218.85,2.2846]
[1734490551270,13.00391973,218.89,218.85,2.2846]
[1734490551474,4.6641,218.91,218.84,5.60013587]
[1734490551969,22.57832338,218.91,218.84,5.60013587]
[1734490552169,7.18249688,218.9,218.86,2.2846]
[1734490552374,17.91422338,218.9,218.86,2.2846]
[1734490552567,10.7317265,218.9,218.86,2.2846]
[1734490552770,10.7317265,218.89,218.86,2.2846]
[1734490552966,2.2842,218.9,218.86,2.2846]
[1734490553580,20.21011526,218.9,218.86,2.2846]
[1734490553773,7.18706415,218.89,218.86,2.2846]
[1734490555175,5.60013587,218.88,218.8,5.60013587]
[1734490555380,16.33898698,218.88,218.8,5.60013587]
[1734490555585,17.92591526,218.87,218.8,5.60013587]
[1734490555781,7.18706415,218.86,218.82,2.285]
[1734490556469,7.18706415,218.86,218.82,7.88513587]
[1734490556871,9.47166415,218.86,218.82,7.88513587]
[1734490557083,9.47166415,218.86,218.83,2.2849]
[1734490557672,7.18706415,218.85,218.83,2.2849]
[1734490557877,7.18706415,218.86,218.83,2.2849]
[1734490558179,2.2845,218.87,218.83,2.2849]
[1734490561482,7.18706415,218.88,218.85,2.2847]
[1734490561787,2.2843,218.89,218.85,2.2847]
[1734490561788,9.47136415,218.89,218.85,2.2847]
[1734490562181,7.18706415,218.89,218.86,2.2845]
[1734490564885,9.47136415,218.89,218.86,2.2845]
[1734490565189,9.47136415,218.89,218.85,2.2847]
[1734490566590,7.18706415,218.89,218.86,7.88463587]
[1734490566785,7.18706415,218.89,218.86,2.2845]
[1734490567092,7.18706415,218.89,218.84,5.60013587]
[1734490567588,9.47136415,218.89,218.85,2.2846]
[1734490570787,9.47136415,218.89,218.84,5.60013587]
[1734490570988,9.47136415,218.89,218.86,2.2845]
[1734490572193,9.47136415,218.89,218.86,7.88463587]
[1734490573096,9.47136415,218.89,218.86,2.2845]
[1734490576398,2.2843,218.88,218.85,2.2846]
[1734490576899,9.47136415,218.88,218.85,2.2846]